Cogmind - Beta 14 @@@ ROGUE MODE // 2024.10.03 @ 19:46:54 Player: siona Result: Destroyed by KM-G7R(R) with Subdweller Laser Performance ------------- Evolutions (0) 0 Regions Visited (3) 600 Robots Destroyed (17) 85 Value Destroyed (510) 510 Prototype IDs (0) 0 Alien Tech Used (0) 0 Bonus (0) 0 TOTAL SCORE: 1195 Bonus ------- None Cogmind --------- Core Integrity 0/250 Matter 264/300 Energy 250/250 System Corruption 2% Temperature Cool (6) Movement Walking (120) Location -10/Subcaves Parts ------- > --- POWER (1) -------- Ion Engine > --- PROPULSION (2) --- Improved Aluminum Leg Improved Aluminum Leg > --- UTILITY (2) ------ Improved Heat Sink Medium Storage Unit > --- WEAPON (2) ------- Battle Rifle Mining Claw > --- INVENTORY (10) --- Light Ion Engine Improved Aluminum Leg Improved Aluminum Leg Improved Heat Sink Makeshift System Shield Particle Cannon Particle Cannon Subdweller Machine Gun Subdweller Machine Gun Grenade Launcher Peak State ------------ > --- POWER ------------ Ion Engine > --- PROPULSION ------- Improved Aluminum Leg Improved Aluminum Leg > --- UTILITY ---------- Improved Heat Sink Improved Heat Sink > --- WEAPON ----------- Particle Cannon Particle Cannon > --- INVENTORY -------- Light Ion Engine Improved Aluminum Leg Improved Aluminum Leg Particle Cannon Grenade Launcher [Rating: 15] Favorites ----------- Power Ion Engine Engine Ion Engine Propulsion Improved Aluminum Leg Treads Light Treads Leg Improved Aluminum Leg Utility Improved Heat Sink Device Improved Heat Sink Storage Small Storage Unit Protection Light Armor Plating Weapon Particle Cannon Energy Gun Medium Laser Energy Cannon Particle Cannon Ballistic Gun Battle Rifle Slashing Weapon Mining Claw Build | -11 -10 -10 -10 ------- Run | Yrd Mat Min Sub Slots Evolved . | . . . . Power . | . . . . Propulsion . | . . . . Utility . | . . . . Weapon . | . . . . Parts Attached 22 | 6 10 2 4 Power 2 | 1 1 . . Engine 2 | 1 1 . . Core . | . . . . Reactor . | . . . . Propulsion 4 | 2 2 . . Treads 2 | 2 . . . Leg 2 | . 2 . . Wheel . | . . . . Hover . | . . . . Flight . | . . . . Utility 5 | 1 3 1 . Device 2 | . 2 . . Storage 2 | 1 . 1 . Processor . | . . . . Hackware . | . . . . Protection 1 | . 1 . . Artifact . | . . . . Weapon 11 | 2 4 1 4 Energy Gun 2 | 2 . . . Energy Cannon 4 | . 4 . . Ballistic Gun 3 | . . . 3 Ballistic Cannon . | . . . . Launcher . | . . . . Special Weapon . | . . . . Impact Weapon . | . . . . Slashing Weapon 2 | . . 1 1 Piercing Weapon . | . . . . Special Melee Weapon . | . . . . Unidentified Prototypes . | . . . . Parts Lost 4 | . 4 . . Power 1 | . 1 . . Propulsion . | . . . . Utility 2 | . 2 . . Weapon 1 | . 1 . . Highest Loss Streak 2 | . 2 . . To Critical Strikes . | . . . . Average Slot Usage (%) 97 | . 96 100 100 Engine 13 | . 12 14 14 Treads 10 | . 15 . . Leg 17 | . 12 28 28 Device 13 | . 9 25 14 Storage 9 | . 10 2 14 Protection 3 | . 5 . . Energy Gun 8 | . 13 . . Energy Cannon 16 | . 14 27 7 Ballistic Gun 1 | . . . 10 Slashing Weapon 1 | . . . 10 Peak Build Rating 15 | 6 15 15 14 Average Rating 11 | 4 10 14 13 On Entrance 8 | . 6 15 13 Naked Turns . | . . . . Heaviest Build 24 | 14 19 24 24 Greatest Support 40 | 40 40 26 26 Greatest Overweight (x) 1 | . 1 . . Average Overweight (x) . | . . . . Largest Inventory Capacity 10 | 8 8 10 10 Average Capacity 7 | 5 7 5 10 Most Carried 10 | 3 8 6 10 Average Carried 4 | 1 4 5 7 Final Capacity 10 | 8 5 10 10 Final Carried 10 | 3 5 6 10 Class Distribution -------------------- 100% | Mutant Dominant Class ---------------- Mutant | -10/Materials Mutant | -10/Mines Mutant | -10/Subcaves Resources | -11 -10 -10 -10 ----------- Run | Yrd Mat Min Sub Matter Collected 433 | 31 345 . 57 Remotely . | . . . . Salvage Created 586 | . 515 37 34 Parts 37 | . 34 2 1 Haulers Intercepted . | . . . . Recyclers Shooed 1 | . 1 . . Parts Field Recycled . | . . . . Retrieved Matter . | . . . . Parts Self-Destructed . | . . . . Prevented . | . . . . Kills | -11 -10 -10 -10 ------- Run | Yrd Mat Min Sub Combat Hostiles Destroyed 12 | . 10 1 1 Melee 1 | . . . 1 Guns 1 | . 1 . . Cannons 9 | . 8 1 . Classes Destroyed 5 | . 4 . 1 Worker 2 | . 2 . . Operator 2 | . 2 . . Watcher 1 | . 1 . . Grunt 11 | . 10 1 . Subdweller 1 | . . . 1 Best Kill Streak 5 | . 5 1 1 Combat Bots Only 3 | . 3 1 1 Max Kills in Single Turn 2 | . 2 1 1 Gunslinging . | . . . . Exploded . | . . . . Melee 1 | . . . 1 Uniques/NPCs Destroyed . | . . . . Combat | -11 -10 -10 -10 -------- Run | Yrd Mat Min Sub Hostile Shots Fired 103 | . 82 . 21 Missed 27 | . 20 . 7 Damage Taken 1216 | . 889 . 327 Core 250 | . 197 . 53 Absorbed by Shields . | . . . . Core Remaining (%) 100 | 100 . . . Volleys Fired 54 | . 51 1 2 Largest 2 | . 2 2 1 Hottest 136 | . 136 136 25 Shots Fired 103 | . 99 2 2 Gun 41 | . 39 . 2 Cannon 62 | . 60 2 . Launcher . | . . . . Special . | . . . . Kinetic 2 | . . . 2 Thermal 101 | . 99 2 . Explosive . | . . . . Electromagnetic . | . . . . Robot Hit Streak 9 | . 9 3 5 Robot Miss Streak 7 | . 7 . . Penetration Max . | . . . . Secondary Targets . | . . . . Shots Hit Robots 67 | . 52 2 13 Core Hits 22 | . 19 1 2 Critical Kills . | . . . . Critical Parts Destroyed . | . . . . Critical Strikes 3 | . 3 . . Burn 3 | . 3 . . Melee Attacks 21 | . . 4 17 Impact . | . . . . Slashing 21 | . . 4 17 Piercing . | . . . . Sneak Attacks . | . . . . Combat Hostiles . | . . . . Follow-up Attacks . | . . . . Damage Inflicted 1212 | . 962 40 210 Guns 264 | . 264 . . Cannons 735 | . 695 40 . Explosions . | . . . . Melee 210 | . . . 210 Ramming 3 | . 3 . . Kinetic . | . . . . Thermal 999 | . 959 40 . Explosive . | . . . . Electromagnetic . | . . . . Impact . | . . . . Slashing 210 | . . . 210 Piercing . | . . . . Highest Corruption 2 | . 2 2 2 Average Corruption 2 | . 2 2 2 Corruption Purged . | . . . . Corruption Blocked . | . . . . Effects 18 | . 11 6 1 Message Errors 6 | . 4 2 . Matter Fused 6 | . 3 2 1 Heat Flow Errors 1 | . . 1 . Energy Discharges 2 | . 2 . . Data Loss (minor) 2 | . 1 1 . Weapon Failures 1 | . 1 . . Overload Shots . | . . . . Overflow Damage 17 | . 17 . . Projectiles 17 | . 17 . . Explosions . | . . . . Melee . | . . . . Knockbacks . | . . . . Impact . | . . . . Kinetic . | . . . . Secondary . | . . . . Self-Inflicted Damage . | . . . . Shots . | . . . . Rammed 1 | . 1 . . Targets Rammed 1 | . 1 . . Kicked . | . . . . Crushed . | . . . . Highest Temperature 793 | . 793 166 . Average Temperature 155 | . 156 97 . Received Heat Transfer 564 | . 510 . 54 Effects 17 | . 17 . . Shutdowns 1 | . 1 . . Energy Bleed 1 | . 1 . . Matter Decay 1 | . 1 . . Short Circuit 2 | . 2 . . Damage (major) 10 | . 10 . . Damage (core) 2 | . 2 . . Siege Activations . | . . . . Robots Corrupted . | . . . . Combat Hostiles . | . . . . Parts Fried . | . . . . Impact Corruptions . | . . . . Robots Melted 1 | . 1 . . Combat Hostiles 1 | . 1 . . Parts Melted 5 | . 5 . . Heat Transferred 2331 | . 2257 74 . Parts Sabotaged . | . . . . Parts Stolen . | . . . . Parts Stripped . | . . . . Power Chain Reactions . | . . . . Alert | -11 -10 -10 -10 ------- Run | Yrd Mat Min Sub Peak Influence 251 | . 251 81 . Initial 61 | . . 61 . Average 89 | . 100 81 . Maximum Alert Level 1 | . 1 . . Low Security (%) 95 | 100 93 100 . Level 1 4 | . 6 . . Level 2 . | . . . . Level 3 . | . . . . Level 4 . | . . . . Level 5 . | . . . . High Security . | . . . . Max Security . | . . . . Squads Dispatched 3 | . 3 . . Investigation . | . . . . Extermination . | . . . . Reinforcement 3 | . 3 . . Assault . | . . . . Garrison . | . . . . Intercept . | . . . . Searches Triggered . | . . . . Construction Impeded . | . . . . Haulers Reinforced . | . . . . Active Scanning Responses . | . . . . Cargo Convoy Interrupts . | . . . . Stealth | -11 -10 -10 -10 --------- Run | Yrd Mat Min Sub Distress Signals 1 | . 1 . . Communications Jammed . | . . . . Distress Signals . | . . . . Times Spotted 33 | . 30 . 3 Peak Tracking Total 4 | . 4 . 2 Tactical Retreats 3 | . 3 . . Traps | -11 -10 -10 -10 ------- Run | Yrd Mat Min Sub Traps Triggered 2 | . 1 . 1 Indirectly . | . . . . Trap Hack Attempts . | . . . . Triggered . | . . . . Disarmed . | . . . . Reprogrammed . | . . . . Reused . | . . . . Traps Extracted . | . . . . Installed . | . . . . Triggered . | . . . . Machines | -11 -10 -10 -10 ---------- Run | Yrd Mat Min Sub Machines Disabled 2 | . 2 . . Max in Single Turn 1 | . 1 . . Machines Repaired . | . . . . Machines Dismantled . | . . . . Machines Sabotaged . | . . . . Overloaded Fab Kills . | . . . . Hacking | -11 -10 -10 -10 --------- Run | Yrd Mat Min Sub Machines Accessed . | . . . . Terminals . | . . . . Fabricators . | . . . . Repair Stations . | . . . . Recycling Units . | . . . . Scanalyzers . | . . . . Garrison Access . | . . . . Total Hacks . | . . . . Successful . | . . . . Failed . | . . . . Catastrophic . | . . . . Database Lockouts . | . . . . Manual . | . . . . Terminals . | . . . . Fabricators . | . . . . Repair Stations . | . . . . Recycling Units . | . . . . Scanalyzers . | . . . . Garrison Access . | . . . . Terminal Hacks . | . . . . Fabricator Hacks . | . . . . Repair Station Hacks . | . . . . Recycling Unit Hacks . | . . . . Scanalyzer . | . . . . Garrison Access Hacks . | . . . . Unauthorized Hacks . | . . . . Terminals . | . . . . Fabricators . | . . . . Repair Stations . | . . . . Recycling Units . | . . . . Scanalyzers . | . . . . Garrison Access . | . . . . Data Cores Recovered . | . . . . Used . | . . . . Hacking Detections . | . . . . Full Trace Events . | . . . . Feedback Events . | . . . . Feedback Blocked . | . . . . Robot Schematics Acquired . | . . . . Robots Built . | . . . . Authchips . | . . . . Time . | . . . . Total Robot Build Rating . | . . . . Part Schematics Acquired . | . . . . Parts Built . | . . . . Authchips . | . . . . Time . | . . . . Total Part Build Rating . | . . . . Parts Repaired . | . . . . Time . | . . . . Parts Recycled . | . . . . Recycled Matter . | . . . . Retrieved Matter . | . . . . Retrieved Components . | . . . . Parts Scanalyzed . | . . . . Part Schematics Acquired . | . . . . Parts Damaged . | . . . . Bothacking | -11 -10 -10 -10 ------------ Run | Yrd Mat Min Sub Used RIF Installer . | . . . . Robots Hacked . | . . . . Non-combat . | . . . . Combat . | . . . . Robot Hacks Applied . | . . . . Relay Couplers Released . | . . . . Fabnet Peak Effective % . | . . . . Robots Rewired . | . . . . Allies Hacked . | . . . . Hacks Repelled . | . . . . Allies | -11 -10 -10 -10 -------- Run | Yrd Mat Min Sub Total Allies . | . . . . Largest Group . | . . . . Highest-Rated Group . | . . . . Highest-Rated Ally . | . . . . Total Orders . | . . . . Ally Attacks . | . . . . Total Damage . | . . . . Kills . | . . . . Allies Corrupted . | . . . . Allies Melted . | . . . . Intel | -11 -10 -10 -10 ------- Run | Yrd Mat Min Sub Robot Analysis Total . | . . . . Derelict Logs Recovered . | . . . . Drone Launches . | . . . . Drone Recoveries . | . . . . Exploration | -11 -10 -10 -10 ------------- Run | Yrd Mat Min Sub Turns Passed 1502 | 83 943 296 180 Spaces Moved 835 | 49 462 227 97 Core 9 | 9 . . . Treads 285 | 40 245 . . Legs 541 | . 217 227 97 Wheels . | . . . . Hover . | . . . . Flight . | . . . . Fastest Speed 50 | 50 120 120 120 Average Speed 132 | 139 141 120 120 Slowest Speed 190 | 160 190 120 120 Overloaded Moves . | . . . . Propulsion Burnouts . | . . . . Robots Hopped . | . . . . Cave-ins Triggered . | . . . . Exploration Rate (%) 30 | 4 57 49 10 Regions Visited 3 Branch Regions 2 Pre-discovered Areas 1 | . . 1 . Known Exits Taken . | . . . . Unknown Exits Taken 3 | 1 1 1 . Scrap Searched 2 | . . . 2 Spaces Dug . | . . . . Terrain Destroyed . | . . . . Melee . | . . . . Projectile . | . . . . AOE . | . . . . Terrain Rammed . | . . . . Walls Destroyed . | . . . . Machines Disabled . | . . . . Actions | -11 -10 -10 -10 --------- Run | Yrd Mat Min Sub Total 1074 | 61 651 240 122 Wait 121 | 4 112 5 . Move 832 | 48 461 226 97 Hop . | . . . . Pick Up 14 | 3 9 1 1 Fast Attach 15 | 6 7 1 1 Attach 2 | . 2 . . Detach 1 | . . . 1 Swap 5 | . 1 1 3 Drop 8 | . 7 1 . Fire 54 | . 51 1 2 Melee 21 | . . 4 17 Ram . | . . . . Kick . | . . . . Crush 1 | . 1 . . Escape Stasis . | . . . . Rewire . | . . . . Trap . | . . . . Miscellaneous . | . . . . Route ------- -11/Scrapyard -10/Materials (discovered 4 exits: [*Mat x3] / [*Min]) -10/Mines -10/Subcaves History --------- Turn | Location | Event 3 | -11/Scrapyard | Discovered new exit (range 15) 84 | -11/Scrapyard | Entered Materials 150 | -10/Materials | Discovered new exit (range 6) 304 | -10/Materials | Build established: Mutant 337 | -10/Materials | Discovered new exit (range 15) 566 | -10/Materials | Core integrity fell below 50% 891 | -10/Materials | Discovered new exit (range 9) 1017 | -10/Materials | Discovered new exit (range 6) 1027 | -10/Materials | Entered Mines 1122 | -10/Mines | Learned location of Storage (-9) 1146 | -10/Mines | Met a Derelict bent on vengeance 1319 | -10/Mines | Discovered new exit (range 3) 1323 | -10/Mines | Entered Subcaves 1455 | -10/Subcaves | Disturbed a concealed Subdweller 1464 | -10/Subcaves | Core integrity fell below 20% 1503 | -10/Subcaves | Destroyed by KM-G7R(R) with Subdweller Laser Last Messages --------------- 01342_ System corrupted: Matter fused (-10). 01395_ FT-G5N(R) destroyed. 01398_ Acquired 34 matter. 01400_ Searching scrap... 01400_ Found Mak. System Shield. 01400_ Found 57 Matter. 01401_ Acquired 13 matter. 01402_ Acquired Mak. System Shield. 01404_ Searching scrap... 01404_ Found Sub. Machine Gun. 01404_ Found 44 Matter. 01407_ Acquired Sub. Machine Gun. 01409_ Acquired 10 matter. 01416_ Subatomizers dissect the Sub. Laser. 01455_ GD-VKS(R) angrily emerges from the Twisted Machinery. 01470_ GD-VKS(R) Sub. Machine Gun ripped off. 01488_ Triggered Piercing Trap. 01488_ Spikes shoot up from the floor. 01488_ Critical hit (Impale). Map ----- +----------------------------------------------------+ | | | | | | | | | | | | | | | | | | | | | | | | | | | | | | | | | | | | | ?????????????????????????????????????????????????? | | ?????????????????????????????????????????????????? | | ?????????????????????????????????????????????????? | | ?????????????????????##############??????????????? | | ????????????????????##$$ $ <<<< ##?????????????? | | ????????????????????#$ $ <<<<"#?????????????? | | ????????????????????#$ $ <<<<<#?????????????? | | ????????????????????# $ @ << #?????????????? | | ????????????????????#<<